fUST/lending_fUST_20250707
["ID","MTS","AMOUNT","RATE_DAILY","PERIOD"]
[370091984,1751878284810,-151.0,0.00018618,2]
[370091985,1751878284820,-151.0,0.00018618,2]
[370091986,1751878284830,-151.0,0.00018618,2]
[370091987,1751878284840,-151.0,0.00018618,2]
[370091988,1751878284849,-302.740728,0.00018618,2]
[370091989,1751878284858,-302.740728,0.00018618,2]
[370091990,1751878284870,-151.0,0.00018618,2]
[370091991,1751878284879,-3702.021644,0.00018618,2]
[370091992,1751878284889,-3702.021644,0.00018618,2]
[370091993,1751878284900,-460.0,0.00018618,2]
[370091994,1751878284910,-460.0,0.00018618,2]
[370091995,1751878284919,-1820.82,0.00018618,2]
[370091996,1751878284929,-460.0,0.00018618,2]
[370091997,1751878284938,-460.0,0.00018618,2]
[370091998,1751878284948,-460.0,0.00018618,2]
[370091999,1751878284957,-460.0,0.00018618,2]
[370092000,1751878284967,-697.17,0.00018618,2]
[370092001,1751878284976,-460.0,0.00018618,2]
[370092002,1751878284985,-460.0,0.00018618,2]
[370092003,1751878284995,-584.48,0.00018618,2]
[370092004,1751878285004,-686.19,0.00018618,2]
[370092005,1751878285013,-460.0,0.00018618,2]
[370092006,1751878285022,-460.0,0.00018618,2]
[370092007,1751878285032,-460.0,0.00018618,2]
[370092008,1751878285041,-460.0,0.00018618,2]
[370092009,1751878285050,-891.26,0.00018618,2]
[370092010,1751878285059,-460.0,0.00018618,2]
[370092011,1751878285068,-309.87,0.00018618,2]
[370092012,1751878285078,-597.07,0.00018618,2]
[370092013,1751878285087,-460.0,0.00018618,2]
[370092014,1751878285097,-511.02,0.00018618,2]
[370092015,1751878285106,-461.69,0.00018618,2]
[370092016,1751878285116,-460.0,0.00018618,2]
[370092017,1751878285125,-460.0,0.00018618,2]
[370092018,1751878285135,-460.0,0.00018618,2]
[370092019,1751878285145,-460.0,0.00018618,2]
[370092020,1751878285154,-460.0,0.00018618,2]
[370092021,1751878285163,-211.563781,0.00018619,2]
[370092022,1751878285172,-211.563781,0.00018619,2]
[370092023,1751878285182,-151.0,0.00018619,2]
[370092024,1751878285192,-151.0,0.00018619,2]
[370092025,1751878285202,-151.0,0.00018619,2]
[370092026,1751878285211,-151.0,0.00018619,2]
[370092027,1751878285222,-151.0,0.00018619,2]
[370092028,1751878285234,-151.0,0.00018619,2]
[370092029,1751878285245,-151.0,0.00018619,2]
[370092030,1751878285257,-234.572647,0.00018619,2]
[370092031,1751878285267,-234.572647,0.00018619,2]
[370092032,1751878285278,-185.862515,0.00018619,2]
[370092033,1751878285288,-185.862515,0.00018619,2]
[370092034,1751878285298,-535.243736,0.00018619,2]
[370092035,1751878285307,-535.243736,0.00018619,2]
[370092036,1751878285317,-151.0,0.00018619,2]
[370092037,1751878285327,-857.698891,0.00018619,2]
[370092038,1751878285338,-857.698891,0.00018619,2]
[370092039,1751878285347,-460.0,0.00018619,2]
[370092040,1751878285357,-460.0,0.00018619,2]
[370092041,1751878285367,-189.64653,0.00018619,2]
[370092042,1751878285376,-460.0,0.00018619,2]
[370092043,1751878285387,-189.64653,0.00018619,2]
[370092044,1751878285397,-460.0,0.00018619,2]
[370092045,1751878285407,-460.0,0.00018619,2]
[370092046,1751878285417,-460.0,0.00018619,2]
[370092047,1751878285426,-579.14,0.00018619,2]
[370092048,1751878285436,-211.911253,0.00018619,2]
[370092049,1751878285445,-211.911253,0.00018619,2]
[370092050,1751878285455,-151.0,0.00018619,2]
[370092051,1751878285465,-549.339809,0.00018619,2]
[370092052,1751878285475,-176.595617,0.00018619,2]
[370092053,1751878285485,-500.0,0.00018633,2]
[370092054,1751878285495,-1551.0,0.00018633,2]
[370092055,1751878285505,-500.0,0.00018633,2]
[370092056,1751878285515,-500.0,0.00018633,2]
[370092057,1751878285524,-1081.0,0.00018633,2]
[370092058,1751878285534,-773.469148,0.00018633,2]
[370092059,1751878285543,-773.469148,0.00018633,2]
[370092060,1751878285553,-670.12472,0.00018633,2]
[370092061,1751878285563,-670.12472,0.00018633,2]
[370092062,1751878285573,-500.0,0.00018635,2]
[370092063,1751878285582,-642.99298203,0.0001866,2]
[370092064,1751878285591,-1551.0,0.0001866,2]
[370092065,1751878285602,-500.0,0.0001866,2]
[370092066,1751878285611,-500.0,0.0001866,2]
[370092067,1751878285620,-1081.0,0.0001866,2]
[370092068,1751878285630,-1500.0,0.00018668,2]
[370092069,1751878285640,-501.11922685,0.00018668,2]
[370092070,1751878285650,-350.876114,0.00018674,2]
[370092071,1751878285661,-1551.0,0.00018687,2]
[370092072,1751878285671,-500.0,0.00018687,2]
[370092073,1751878285681,-388.43900993,0.00018687,2]
[370092074,1751878285691,-1081.0,0.00018687,2]
[370092075,1751878285701,-1551.0,0.00018715,2]
[370092076,1751878285711,-500.0,0.00018715,2]
[370092077,1751878285720,-1081.0,0.00018715,2]
[370092078,1751878285729,-500.0,0.00018717,2]
[370092079,1751878285739,-503.491747,0.00018719,2]
[370092080,1751878285748,-503.491747,0.00018719,2]
[370092081,1751878285758,-151.0,0.00018719,2]
[370092082,1751878285767,-151.0,0.00018719,2]
[370092083,1751878285777,-261.260815,0.00018719,2]
[370092084,1751878285786,-1551.0,0.00018742,2]
[370092085,1751878285795,-500.0,0.00018742,2]
[370092086,1751878285807,-1081.0,0.00018742,2]
[370092087,1751878285817,-350.876114,0.00018756,2]
[370092088,1751878285830,-1680.07552712,0.00018762,2]
[370092089,1751878285840,-273.721132,0.00018768,2]
[370092090,1751878285849,-273.721132,0.00018768,2]
[370092091,1751878285861,-158.55,0.00018768,2]
[370092092,1751878285871,-158.55,0.00018768,2]
[370092093,1751878285881,-1551.0,0.0001877,2]
[370092094,1751878285891,-500.0,0.0001877,2]
[370092095,1751878285902,-1081.0,0.0001877,2]
[370092096,1751878285912,-475.24,0.00018778,2]
[370092097,1751878285921,-460.0,0.00018778,2]
[370092098,1751878285931,-634.64,0.00018778,2]
[370092099,1751878285940,-460.0,0.00018778,2]
[370092100,1751878285950,-460.0,0.00018778,2]
[370092101,1751878285960,-578.27,0.00018778,2]
[370092102,1751878285972,-714.52,0.00018778,2]
[370092103,1751878285982,-3372.58,0.00018778,2]
[370092104,1751878285993,-460.0,0.00018778,2]
[370092105,1751878286003,-557.47,0.00018778,2]
[370092106,1751878286013,-479.57,0.00018778,2]
[370092107,1751878286023,-476.15,0.00018778,2]
[370092108,1751878286033,-460.0,0.00018782,2]
[370092109,1751878286042,-460.0,0.00018782,2]
[370092110,1751878286051,-600.0,0.00018782,2]
[370092111,1751878286061,-600.0,0.00018782,2]
[370092112,1751878286070,-600.0,0.00018782,2]
[370092113,1751878286080,-460.0,0.00018782,2]
[370092114,1751878286089,-460.0,0.00018782,2]
[370092115,1751878286098,-460.0,0.00018782,2]
[370092116,1751878286107,-460.0,0.00018782,2]
[370092117,1751878286116,-406.10701201,0.00018782,2]
[370092118,1751878286127,-460.0,0.00018782,2]
[370092119,1751878286137,-460.0,0.00018782,2]
[370092120,1751878286147,-608.10192857,0.00018782,2]
[370092121,1751878286156,-5018.54,0.00018782,2]
[370092122,1751878286165,-460.0,0.00018782,2]
[370092123,1751878286176,-473.43,0.00018782,2]
[370092124,1751878286186,-978.43,0.00018782,2]
[370092125,1751878286195,-877.49,0.00018782,2]
[370092126,1751878286205,-460.0,0.00018782,2]
[370092127,1751878286214,-460.0,0.00018782,2]
[370092128,1751878286224,-460.0,0.00018782,2]
[370092129,1751878286233,-177.68508278,0.00018782,2]
[370092130,1751878286242,-4865.84,0.00018782,2]
[370092131,1751878286251,-460.0,0.00018782,2]
[370092132,1751878286260,-8429.87,0.00018782,2]
[370092133,1751878286269,-1078.12,0.00018782,2]
[370092134,1751878286279,-460.0,0.00018782,2]
[370092135,1751878286288,-460.0,0.00018782,2]
[370092136,1751878286298,-460.0,0.00018782,2]
[370092137,1751878286308,-460.0,0.00018782,2]
[370092138,1751878286317,-460.0,0.00018782,2]
[370092139,1751878286326,-814.88,0.00018782,2]
[370092140,1751878286336,-460.0,0.00018782,2]
[370092141,1751878286345,-1523.08,0.00018782,2]
[370092142,1751878286354,-758.47,0.00018783,2]
[370092143,1751878286363,-460.0,0.00018783,2]
[370092144,1751878286374,-460.0,0.00018783,2]
[370092145,1751878286383,-460.0,0.00018783,2]
[370092146,1751878286394,-460.0,0.00018783,2]
[370092147,1751878286403,-648.63,0.00018783,2]
[370092148,1751878286413,-4741.33,0.00018783,2]
[370092149,1751878286423,-815.67,0.00018783,2]
[370092150,1751878286433,-4342.85,0.00018783,2]
[370092151,1751878286443,-460.0,0.00018783,2]
[370092152,1751878286452,-460.0,0.00018783,2]
[370092153,1751878286462,-1322.28,0.00018783,2]
[370092154,1751878286471,-460.0,0.00018784,2]
[370092155,1751878286480,-612.32,0.00018784,2]
[370092156,1751878286490,-586.81,0.00018784,2]
[370092157,1751878286499,-460.0,0.00018784,2]
[370092158,1751878286509,-415.56709971,0.00018784,2]
[370092159,1751878286518,-460.0,0.00018784,2]
[370092160,1751878286529,-978.47,0.00018784,2]
[370092161,1751878286538,-1929.95,0.00018784,2]
[370092162,1751878286548,-460.0,0.00018784,2]
[370092163,1751878286558,-479.04,0.00018784,2]
[370092164,1751878286568,-460.0,0.00018784,2]
[370092165,1751878286577,-460.0,0.00018784,2]
[370092166,1751878286587,-460.0,0.00018784,2]
[370092167,1751878286599,-460.0,0.00018784,2]
[370092168,1751878286609,-961.6,0.00018784,2]
[370092169,1751878286619,-1232.5,0.00018784,2]
[370092170,1751878286628,-2371.65,0.00018784,2]
[370092171,1751878286637,-460.0,0.00018784,2]
[370092172,1751878286647,-1116.74,0.00018784,2]
[370092173,1751878286659,-4190.5,0.00018784,2]
[370092174,1751878286668,-460.0,0.00018784,2]
[370092175,1751878286677,-460.0,0.00018786,2]
[370092176,1751878286687,-460.0,0.00018786,2]
[370092177,1751878286696,-460.0,0.00018786,2]
[370092178,1751878286705,-460.0,0.00018786,2]
[370092179,1751878286715,-460.00001425,0.00018786,2]
[370092180,1751878286724,-484.26453525,0.00018786,2]
[370092181,1751878286733,-460.0,0.00018786,2]
[370092182,1751878286743,-330.82834742,0.00018786,2]
[370092183,1751878286752,-460.0,0.00018786,2]
[370092184,1751878286762,-504.54,0.00018786,2]
[370092185,1751878286785,-460.0,0.00018786,2]
[370092186,1751878286795,-460.0,0.00018786,2]
[370092187,1751878286805,-460.0,0.00018786,2]
[370092188,1751878286814,-813.31,0.00018786,2]
[370092189,1751878286827,-460.0,0.00018786,2]
[370092190,1751878286838,-696.66,0.00018786,2]
[370092191,1751878286849,-460.0,0.00018786,2]
[370092192,1751878286859,-460.0,0.00018786,2]
[370092193,1751878286870,-460.0,0.00018786,2]
[370092194,1751878286880,-460.0,0.00018786,2]
[370092195,1751878286889,-460.0,0.00018786,2]
[370092196,1751878286899,-460.0,0.00018786,2]
[370092197,1751878286910,-460.0,0.00018786,2]
[370092198,1751878286920,-460.0,0.00018786,2]
[370092199,1751878286929,-460.0,0.00018786,2]
[370092200,1751878286939,-460.0,0.00018786,2]
[370092201,1751878286947,-642.4,0.00018786,2]
[370092202,1751878286956,-989.64,0.00018786,2]
[370092203,1751878286965,-591.78,0.00018786,2]
[370092204,1751878286975,-460.0,0.00018786,2]
[370092205,1751878286984,-460.0,0.00018786,2]
[370092206,1751878286993,-460.0,0.00018786,2]
[370092207,1751878287005,-549.97,0.00018786,2]
[370092208,1751878287015,-460.0,0.00018786,2]
[370092209,1751878287024,-668.91,0.00018786,2]
[370092210,1751878287033,-460.0,0.00018786,2]
[370092211,1751878287043,-460.0,0.00018786,2]
[370092212,1751878287053,-1175.75,0.00018786,2]
[370092213,1751878287062,-460.0,0.00018786,2]
[370092214,1751878287071,-575.32,0.00018786,2]
[370092215,1751878287081,-501.04,0.00018786,2]
[370092216,1751878287090,-460.0,0.00018786,2]
[370092217,1751878287101,-460.0,0.00018786,2]
[370092218,1751878287175,-460.0,0.00018786,2]
[370092219,1751878287185,-460.0,0.00018786,2]
[370092220,1751878287196,-460.0,0.00018786,2]
[370092221,1751878287205,-460.0,0.00018786,2]
[370092222,1751878287215,-1816.74,0.00018786,2]
[370092223,1751878287224,-460.0,0.00018786,2]
[370092224,1751878287234,-460.0,0.00018786,2]
[370092225,1751878287243,-460.0,0.00018786,2]
[370092226,1751878287253,-627.71,0.00018786,2]
[370092227,1751878287262,-1190.73,0.00018786,2]
[370092228,1751878287271,-460.0,0.00018786,2]
[370092229,1751878287281,-1436.76,0.00018786,2]
[370092230,1751878287290,-460.0,0.00018786,2]
[370092231,1751878287299,-460.0,0.00018786,2]
[370092232,1751878287308,-744.3,0.00018786,2]
[370092233,1751878287318,-460.0,0.00018787,2]
[370092234,1751878287328,-460.0,0.00018787,2]
[370092235,1751878287337,-460.0,0.00018787,2]
[370092236,1751878287346,-460.0,0.00018787,2]
[370092237,1751878287356,-460.0,0.00018787,2]
[370092238,1751878287365,-1626.87,0.00018787,2]
[370092239,1751878287374,-1041.83,0.00018787,2]
[370092240,1751878287384,-460.0,0.00018787,2]
[370092241,1751878287393,-460.0,0.00018787,2]
[370092242,1751878287403,-1219.94,0.00018787,2]
[370092243,1751878287412,-11783.72,0.00018787,2]
[370092244,1751878287422,-516.28,0.00018787,2]
[370092245,1751878287432,-1126.4,0.00018787,2]
[370092246,1751878287442,-3083.89,0.00018787,2]
[370092247,1751878287451,-746.91,0.00018787,2]
[370092248,1751878287461,-460.0,0.00018787,2]
[370092249,1751878287471,-1051.67,0.00018787,2]
[370092250,1751878287480,-460.0,0.00018788,2]
[370092251,1751878287489,-605.49006115,0.00018788,2]
[370092252,1751878287498,-460.0,0.00018788,2]
[370092253,1751878287508,-566.95,0.00018788,2]
[370092254,1751878287517,-591.6,0.00018788,2]
[370092255,1751878287526,-460.0,0.00018788,2]
[370092256,1751878287535,-1551.0,0.00018797,2]
[370092257,1751878287544,-500.0,0.00018797,2]
[370092258,1751878287554,-1081.0,0.00018797,2]
[370092259,1751878287563,-500.0,0.000188,2]
[370092260,1751878287572,-1551.0,0.00018824,2]
[370092261,1751878287581,-363.0,0.00018824,2]
[370092262,1751878287591,-1081.0,0.00018824,2]
[370092263,1751878287600,-350.876114,0.00018838,2]
[370092264,1751878287610,-178.623899,0.00018844,2]
[370092265,1751878287619,-178.623899,0.00018844,2]
[370092266,1751878287628,-151.0,0.00018844,2]
[370092267,1751878287637,-1551.0,0.00018852,2]
[370092268,1751878287647,-1081.0,0.00018852,2]
[370092269,1751878287656,-1551.0,0.00018879,2]
[370092270,1751878287666,-1081.0,0.00018879,2]
[370092271,1751878287675,-600.0,0.00018882,2]
[370092272,1751878287684,-550.56621969,0.00018882,2]
[370092273,1751878287694,-500.0,0.00018882,2]
[370092274,1751878287703,-460.0,0.00018886,2]
[370092275,1751878287712,-1466.61,0.00018886,2]
[370092276,1751878287722,-1693.65,0.00018886,2]
[370092277,1751878287731,-460.0,0.00018886,2]
[370092278,1751878287740,-511.73,0.00018886,2]
[370092279,1751878287749,-5131.36,0.00018886,2]
[370092280,1751878287758,-460.0,0.00018886,2]
[370092281,1751878287767,-927.78,0.00018886,2]
[370092282,1751878287776,-460.0,0.00018886,2]
[370092283,1751878287791,-2375.1,0.00018886,2]
[370092284,1751878287800,-4148.36,0.00018886,2]
[370092285,1751878287809,-460.0,0.00018886,2]
[370092286,1751878287820,-1006.41,0.00018886,2]
[370092287,1751878287830,-460.0,0.00018886,2]
[370092288,1751878287840,-9521.95,0.00018886,2]
[370092289,1751878287849,-2677.89,0.00018886,2]
[370092290,1751878287858,-927.92,0.00018886,2]
[370092291,1751878287868,-460.0,0.00018886,2]
[370092292,1751878287877,-200.98010284,0.00018886,2]
[370092293,1751878287887,-160.0,0.00018886,2]
[370092294,1751878287896,-460.0,0.00018887,2]
[370092295,1751878287905,-460.0,0.00018887,2]
[370092296,1751878287915,-172.28124157,0.00018887,2]
[370092297,1751878287925,-460.0,0.00018887,2]
[370092298,1751878287934,-460.0,0.00018887,2]
[370092299,1751878287943,-652.73,0.00018887,2]
[370092300,1751878287953,-460.0,0.00018887,2]
[370092301,1751878287964,-460.0,0.00018887,2]
[370092302,1751878287974,-460.0,0.00018887,2]
[370092303,1751878287983,-460.0,0.00018887,2]
[370092304,1751878287993,-279.25940516,0.00018887,2]
[370092305,1751878288002,-460.0,0.00018887,2]
[370092306,1751878288012,-460.0,0.00018887,2]
[370092307,1751878288021,-460.0,0.00018887,2]
[370092308,1751878288030,-460.0,0.00018887,2]
[370092309,1751878288040,-460.0,0.00018887,2]
[370092310,1751878288050,-460.0,0.00018887,2]
[370092311,1751878288060,-460.0,0.00018887,2]
[370092312,1751878288069,-460.0,0.00018887,2]
[370092313,1751878288078,-460.0,0.00018887,2]
[370092314,1751878288087,-460.0,0.00018887,2]
[370092315,1751878288096,-446.74189773,0.00018887,2]
[370092316,1751878288105,-481.84245072,0.00018887,2]
[370092317,1751878288115,-463.72979266,0.00018887,2]
[370092318,1751878288124,-460.0,0.00018887,2]
[370092319,1751878288137,-460.0,0.00018887,2]
[370092320,1751878288148,-460.0,0.00018887,2]
[370092321,1751878288157,-460.0,0.00018887,2]
[370092322,1751878288166,-639.905489,0.00018887,2]
[370092323,1751878288176,-639.905489,0.00018887,2]
[370092324,1751878288186,-460.0,0.00018887,2]
[370092325,1751878288197,-460.0,0.00018887,2]
[370092326,1751878288207,-460.0,0.00018887,2]
[370092327,1751878288216,-460.0,0.00018887,2]
[370092328,1751878288226,-590.05,0.00018887,2]
[370092329,1751878288236,-642.41,0.00018887,2]
[370092330,1751878288245,-460.0,0.00018887,2]
[370092331,1751878288255,-460.0,0.00018887,2]
[370092332,1751878288264,-460.0,0.00018887,2]
[370092333,1751878288275,-1814.25,0.00018887,2]
[370092334,1751878288291,-460.0,0.00018887,2]
[370092335,1751878288300,-460.0,0.00018887,2]
[370092336,1751878288311,-780.98,0.00018887,2]
[370092337,1751878288321,-460.0,0.00018887,2]
[370092338,1751878288331,-460.0,0.00018887,2]
[370092339,1751878288340,-460.0,0.00018887,2]
[370092340,1751878288350,-739.46,0.00018887,2]
[370092341,1751878288359,-460.0,0.00018887,2]
[370092342,1751878288369,-460.0,0.00018887,2]
[370092343,1751878288378,-467.44438804,0.00018887,2]
[370092344,1751878288388,-1473.58,0.00018887,2]
[370092345,1751878288397,-460.0,0.00018887,2]
[370092346,1751878288407,-460.0,0.00018887,2]
[370092347,1751878288416,-460.0,0.00018887,2]
[370092348,1751878288426,-460.0,0.00018887,2]
[370092349,1751878288437,-460.0,0.00018887,2]
[370092350,1751878288446,-529.37560498,0.00018887,2]
[370092351,1751878288455,-460.0,0.00018887,2]
[370092352,1751878288466,-537.97,0.00018887,2]
[370092353,1751878288476,-438.48691043,0.00018887,2]
[370092354,1751878288486,-460.0,0.00018887,2]
[370092355,1751878288497,-474.52,0.00018887,2]
[370092356,1751878288507,-460.0,0.00018887,2]
[370092357,1751878288517,-460.0,0.00018887,2]
[370092358,1751878288526,-460.0,0.00018887,2]
[370092359,1751878288536,-460.0,0.00018887,2]
[370092360,1751878288547,-463.45,0.00018887,2]
[370092361,1751878288557,-515.18,0.00018887,2]
[370092362,1751878288567,-569.19,0.00018887,2]
[370092363,1751878288577,-460.0,0.00018887,2]
[370092364,1751878288589,-474.81,0.00018887,2]
[370092365,1751878288598,-590.63,0.00018887,2]
[370092366,1751878288608,-517.21,0.00018887,2]
[370092367,1751878288617,-600.59,0.00018887,2]
[370092368,1751878288627,-460.0,0.00018887,2]
[370092369,1751878288636,-460.0,0.00018887,2]
[370092370,1751878288647,-460.14,0.00018887,2]
[370092371,1751878288657,-460.0,0.00018887,2]
[370092372,1751878288667,-460.0,0.00018887,2]
[370092373,1751878288677,-601.85897903,0.00018887,2]
[370092374,1751878288686,-460.0,0.00018887,2]
[370092375,1751878288696,-503.25,0.00018887,2]
[370092376,1751878288705,-500.0,0.00018887,2]
[370092377,1751878288715,-1790.38,0.00018887,2]
[370092378,1751878288724,-500.0,0.00018887,2]
[370092379,1751878288733,-330.60564192,0.00018887,2]
[370092380,1751878288743,-1020.84,0.00018887,2]
[370092381,1751878288754,-460.0,0.00018887,2]
[370092382,1751878288763,-628.75,0.00018887,2]
[370092383,1751878288774,-724.26,0.00018887,2]
[370092384,1751878288783,-182.25411643,0.00018887,2]
[370092385,1751878288793,-599.29,0.00018887,2]
[370092386,1751878288802,-618.64,0.00018887,2]
[370092387,1751878288812,-460.0,0.00018887,2]
[370092388,1751878288825,-460.0,0.00018887,2]
[370092389,1751878288835,-460.0,0.00018887,2]
[370092390,1751878288845,-736.7,0.00018887,2]
[370092391,1751878288854,-513.26,0.00018887,2]
[370092392,1751878288867,-2101.7,0.00018887,2]
[370092393,1751878288877,-701.27,0.00018887,2]
[370092394,1751878288886,-460.0,0.00018887,2]
[370092395,1751878288896,-501.61,0.00018887,2]
[370092396,1751878288906,-621.18,0.00018887,2]
[370092397,1751878288916,-460.0,0.00018887,2]
[370092398,1751878288927,-460.0,0.00018887,2]
[370092399,1751878288937,-508.32887548,0.00018887,2]
[370092400,1751878288947,-460.0,0.00018887,2]
[370092401,1751878288956,-460.0,0.00018887,2]
[370092402,1751878288966,-460.0,0.00018887,2]
[370092403,1751878288976,-460.0,0.00018887,2]
[370092404,1751878288985,-1588.08,0.00018887,2]
[370092405,1751878288995,-460.0,0.00018887,2]
[370092406,1751878289005,-1502.2,0.00018887,2]
[370092407,1751878289015,-460.0,0.00018887,2]
[370092408,1751878289025,-603.3,0.00018887,2]
[370092409,1751878289034,-645.22,0.00018887,2]
[370092410,1751878289044,-460.0,0.00018887,2]
[370092411,1751878289055,-460.0,0.00018887,2]
[370092412,1751878289065,-460.0,0.00018887,2]
[370092413,1751878289076,-460.0,0.00018887,2]
[370092414,1751878289088,-802.16,0.00018887,2]
[370092415,1751878289098,-460.0,0.00018887,2]
[370092416,1751878289109,-582.95,0.00018887,2]
[370092417,1751878289122,-460.0,0.00018887,2]
[370092418,1751878289132,-518.66,0.00018887,2]
[370092419,1751878289142,-461.06,0.00018887,2]
[370092420,1751878289153,-460.0,0.00018887,2]
[370092421,1751878289164,-882.2,0.00018887,2]
[370092422,1751878289174,-460.0,0.00018887,2]
[370092423,1751878289185,-460.0,0.00018887,2]
[370092424,1751878289196,-460.0,0.00018887,2]
[370092425,1751878289206,-466.33,0.00018887,2]
[370092426,1751878289215,-463.11485681,0.00018887,2]
[370092427,1751878289225,-811.29,0.00018887,2]
[370092428,1751878289236,-460.0,0.00018887,2]
[370092429,1751878289246,-151.0,0.00018887,2]
[370092430,1751878289256,-460.0,0.00018889,2]
[370092431,1751878289266,-460.0,0.00018889,2]
[370092432,1751878289275,-460.0,0.00018889,2]
[370092433,1751878289286,-575.59,0.00018889,2]
[370092434,1751878289298,-460.0,0.00018889,2]
[370092435,1751878289308,-460.0,0.00018889,2]
[370092436,1751878289318,-460.0,0.00018889,2]
[370092437,1751878289328,-460.0,0.00018889,2]
[370092438,1751878289338,-481.51117698,0.00018889,2]
[370092439,1751878289348,-460.0,0.00018891,2]
[370092440,1751878289358,-152.832752,0.00018892,2]
[370092441,1751878289371,-151.0,0.00018892,2]
[370092442,1751878289381,-151.0,0.00018892,2]
[370092443,1751878289392,-460.0,0.00018892,2]
[370092444,1751878289402,-460.0,0.00018892,2]
[370092445,1751878289412,-1820.82,0.00018892,2]
[370092446,1751878289422,-532.7401392,0.00018892,2]
[370092447,1751878289431,-306.27643899,0.00018892,2]
[370092448,1751878289441,-460.0,0.00018892,2]
[370092449,1751878289451,-460.0,0.00018892,2]
[370092450,1751878289460,-697.17,0.00018892,2]
[370092451,1751878289470,-460.0,0.00018892,2]
[370092452,1751878289479,-460.0,0.00018892,2]
[370092453,1751878289488,-584.48,0.00018892,2]
[370092454,1751878289497,-686.19,0.00018892,2]
[370092455,1751878289506,-460.0,0.00018892,2]
[370092456,1751878289516,-460.0,0.00018892,2]
[370092457,1751878289526,-460.0,0.00018892,2]
[370092458,1751878289536,-460.0,0.00018892,2]
[370092459,1751878289545,-891.26,0.00018892,2]
[370092460,1751878289555,-460.0,0.00018892,2]
[370092461,1751878289565,-597.07,0.00018892,2]
[370092462,1751878289575,-460.0,0.00018892,2]
[370092463,1751878289585,-511.02,0.00018892,2]
[370092464,1751878289595,-461.69,0.00018892,2]
[370092465,1751878289605,-151.0,0.00018892,2]
[370092466,1751878289614,-460.0,0.00018892,2]
[370092467,1751878289624,-160.955765,0.00018892,2]
[370092468,1751878289634,-160.955765,0.00018892,2]
[370092469,1751878289645,-151.0,0.00018892,2]
[370092470,1751878289655,-460.0,0.00018892,2]
[370092471,1751878289665,-151.0,0.00018892,2]
[370092472,1751878289676,-166.455343,0.00018892,2]
[370092473,1751878289686,-166.455343,0.00018892,2]
[370092474,1751878289697,-460.0,0.00018892,2]
[370092475,1751878289709,-460.0,0.00018892,2]
[370092476,1751878289719,-460.0,0.00018892,2]
[370092477,1751878289730,-1240.905189,0.00018892,2]
[370092478,1751878289741,-1240.905189,0.00018892,2]
[370092479,1751878289751,-277.861526,0.00018893,2]
[370092480,1751878289761,-277.861526,0.00018893,2]
[370092481,1751878289771,-151.0,0.00018893,2]
[370092482,1751878289781,-151.0,0.00018893,2]
[370092483,1751878289792,-172.762535,0.00018893,2]